fUST/lending_fUST_20250213
["ID","MTS","AMOUNT","RATE_DAILY","PERIOD"]
[352892200,1739392249465,-500.0,0.00012054,2]
[352892201,1739392249475,-606.65,0.00012054,2]
[352892202,1739392249485,-500.0,0.00012054,2]
[352892203,1739392249494,-500.0,0.00012054,2]
[352892204,1739392249504,-500.0,0.00012054,2]
[352892205,1739392249515,-705.48,0.00012054,2]
[352892206,1739392249530,-500.0,0.00012054,2]
[352892207,1739392249540,-500.0,0.00012054,2]
[352892208,1739392249550,-500.0,0.00012054,2]
[352892209,1739392249560,-500.0,0.00012054,2]
[352892210,1739392249572,-3136.41,0.00012054,2]
[352892211,1739392249582,-500.0,0.00012054,2]
[352892212,1739392249592,-583.6,0.00012054,2]
[352892214,1739392249603,-151.0,0.00012054,2]
[352892216,1739392249613,-500.0,0.00012054,2]
[352892218,1739392249624,-500.0,0.00012054,2]
[352892220,1739392249633,-1250.2,0.00012054,2]
[352892222,1739392249643,-347.32590083,0.00012054,2]
[352892224,1739392249653,-462.32117,0.00012054,2]
[352892226,1739392249663,-462.32117,0.00012054,2]
[352892227,1739392249672,-500.0,0.00012054,2]
[352892230,1739392249684,-500.0,0.00012054,2]
[352892231,1739392249694,-208.327002,0.00012054,2]
[352892233,1739392249704,-500.0,0.00012054,2]
[352892235,1739392249714,-10697.67,0.00012054,2]
[352892238,1739392249724,-500.0,0.00012054,2]
[352892240,1739392249734,-500.0,0.00012054,2]
[352892241,1739392249744,-208.327002,0.00012054,2]
[352892244,1739392249754,-287.510292,0.00012054,2]
[352892246,1739392249763,-287.510292,0.00012054,2]
[352892248,1739392249772,-151.0,0.00012054,2]
[352892250,1739392249783,-500.0,0.00012054,2]
[352892252,1739392249793,-616.97,0.00012054,2]
[352892254,1739392249803,-151.0,0.00012054,2]
[352892256,1739392249812,-500.0,0.00012054,2]
[352892258,1739392249822,-500.0,0.00012054,2]
[352892260,1739392249832,-500.0,0.00012054,2]
[352892268,1739392249904,-500.0,0.00012054,2]
[352892270,1739392249914,-858.92,0.00012054,2]
[352892272,1739392249924,-8463.2,0.00012054,2]
[352892274,1739392249934,-500.0,0.00012054,2]
[352892276,1739392249944,-2862.12,0.00012054,2]
[352892278,1739392249953,-500.0,0.00012054,2]
[352892280,1739392249963,-155.25728796,0.00012054,2]
[352892282,1739392249972,-1487.37,0.00012054,2]
[352892284,1739392249982,-500.0,0.00012054,2]
[352892286,1739392249991,-500.0,0.00012054,2]
[352892288,1739392250001,-3104.52,0.00012054,2]
[352892290,1739392250010,-848.99,0.00012054,2]
[352892292,1739392250020,-582.73,0.00012054,2]
[352892294,1739392250030,-500.0,0.00012054,2]
[352892296,1739392250040,-3478.93,0.00012054,2]
[352892298,1739392250049,-623.57,0.00012054,2]
[352892300,1739392250058,-500.0,0.00012054,2]
[352892302,1739392250068,-1349.55,0.00012054,2]
[352892304,1739392250077,-3327.98,0.00012054,2]
[352892306,1739392250087,-500.0,0.00012054,2]
[352892308,1739392250097,-500.0,0.00012054,2]
[352892310,1739392250106,-2711.65,0.00012054,2]
[352892312,1739392250117,-500.0,0.00012054,2]
[352892314,1739392250127,-500.0,0.00012054,2]
[352892316,1739392250137,-5143.51,0.00012054,2]
[352892318,1739392250146,-500.0,0.00012054,2]
[352892320,1739392250156,-14479.95,0.00012054,2]
[352892322,1739392250165,-1054.47,0.00012054,2]
[352892324,1739392250178,-1177.65,0.00012054,2]
[352892326,1739392250191,-500.0,0.00012054,2]
[352892328,1739392250202,-2107.88,0.00012054,2]
[352892330,1739392250214,-633.52,0.00012054,2]
[352892332,1739392250225,-35239.76,0.00012054,2]
[352892334,1739392250236,-1306.69,0.00012054,2]
[352892336,1739392250246,-4102.13,0.00012054,2]
[352892338,1739392250255,-1548.48,0.00012054,2]
[352892340,1739392250266,-1006.39820425,0.00012095,2]
[352892342,1739392250277,-587.0,0.00012099,2]
[352892344,1739392250288,-151.0,0.000121,2]
[352892346,1739392250298,-500.0,0.00012191,2]
[352892348,1739392250307,-500.0,0.00012191,2]
[352892350,1739392250316,-500.0,0.00012191,2]
[352892352,1739392250326,-500.0,0.00012191,2]
[352892354,1739392250335,-500.0,0.00012191,2]
[352892356,1739392250345,-578.48934248,0.00012191,2]
[352892359,1739392250354,-500.0,0.00012191,2]
[352892361,1739392250364,-500.0,0.00012191,2]
[352892362,1739392250374,-500.0,0.00012191,2]
[352892364,1739392250383,-500.0,0.00012191,2]
[352892366,1739392250393,-500.0,0.00012191,2]
[352892368,1739392250402,-500.0,0.00012191,2]
[352892370,1739392250411,-500.0,0.00012191,2]
[352892372,1739392250420,-500.0,0.00012191,2]
[352892374,1739392250430,-500.0,0.00012191,2]
[352892376,1739392250439,-500.0,0.00012191,2]
[352892378,1739392250449,-500.0,0.00012191,2]
[352892380,1739392250458,-500.0,0.00012191,2]
[352892382,1739392250468,-500.0,0.00012191,2]
[352892384,1739392250477,-500.0,0.00012191,2]
[352892386,1739392250486,-500.0,0.00012191,2]
[352892388,1739392250496,-500.0,0.00012191,2]
[352892390,1739392250506,-606.65,0.00012191,2]
[352892392,1739392250518,-500.0,0.00012191,2]
[352892394,1739392250529,-500.0,0.00012191,2]
[352892396,1739392250539,-500.0,0.00012191,2]
[352892398,1739392250548,-705.48,0.00012191,2]
[352892400,1739392250559,-500.0,0.00012191,2]
[352892402,1739392250569,-500.0,0.00012191,2]
[352892404,1739392250579,-500.0,0.00012191,2]
[352892406,1739392250588,-500.0,0.00012191,2]
[352892408,1739392250599,-3136.41,0.00012191,2]
[352892410,1739392250610,-500.0,0.00012191,2]
[352892413,1739392250620,-583.6,0.00012191,2]
[352892414,1739392250630,-500.0,0.00012191,2]
[352892416,1739392250639,-500.0,0.00012191,2]
[352892418,1739392250649,-1250.2,0.00012191,2]
[352892420,1739392250660,-500.0,0.00012191,2]
[352892422,1739392250669,-622.75,0.00012191,2]
[352892425,1739392250679,-500.0,0.00012191,2]
[352892427,1739392250689,-10697.67,0.00012191,2]
[352892429,1739392250703,-500.0,0.00012191,2]
[352892431,1739392250713,-500.0,0.00012191,2]
[352892433,1739392250723,-500.0,0.00012191,2]
[352892435,1739392250732,-616.97,0.00012191,2]
[352892437,1739392250742,-500.0,0.00012191,2]
[352892439,1739392250751,-500.0,0.00012191,2]
[352892441,1739392250760,-449.77059444,0.00012191,2]
[352892443,1739392250770,-500.0,0.00012191,2]
[352892445,1739392250779,-858.92,0.00012191,2]
[352892447,1739392250789,-8463.2,0.00012191,2]
[352892449,1739392250799,-500.0,0.00012191,2]
[352892451,1739392250808,-2862.12,0.00012191,2]
[352892453,1739392250818,-500.0,0.00012191,2]
[352892455,1739392250827,-1487.37,0.00012191,2]
[352892457,1739392250836,-500.0,0.00012191,2]
[352892459,1739392250846,-500.0,0.00012191,2]
[352892461,1739392250856,-151.0,0.00012191,2]
[352892463,1739392250865,-151.0,0.00012191,2]
[352892464,1739392250875,-3104.52,0.00012191,2]
[352892473,1739392250949,-848.99,0.00012191,2]
[352892476,1739392250960,-582.73,0.00012191,2]
[352892477,1739392250969,-500.0,0.00012191,2]
[352892479,1739392250980,-3478.93,0.00012191,2]
[352892482,1739392250989,-623.57,0.00012191,2]
[352892483,1739392250999,-500.0,0.00012191,2]
[352892485,1739392251008,-1349.55,0.00012191,2]
[352892488,1739392251018,-151.0,0.00012191,2]
[352892489,1739392251027,-3327.98,0.00012191,2]
[352892491,1739392251037,-151.0,0.00012191,2]
[352892493,1739392251047,-500.0,0.00012191,2]
[352892496,1739392251057,-500.0,0.00012191,2]
[352892498,1739392251066,-2711.65,0.00012191,2]
[352892500,1739392251076,-500.0,0.00012191,2]
[352892502,1739392251086,-500.0,0.00012191,2]
[352892504,1739392251095,-5143.51,0.00012191,2]
[352892505,1739392251105,-500.0,0.00012191,2]
[352892508,1739392251115,-14479.95,0.00012191,2]
[352892510,1739392251124,-1054.47,0.00012191,2]
[352892512,1739392251133,-1177.65,0.00012191,2]
[352892513,1739392251143,-500.0,0.00012191,2]
[352892515,1739392251153,-2107.88,0.00012191,2]
[352892518,1739392251165,-35239.76,0.00012191,2]
[352892520,1739392251175,-633.52,0.00012191,2]
[352892521,1739392251184,-1306.69,0.00012191,2]
[352892523,1739392251195,-4102.13,0.00012191,2]
[352892526,1739392251205,-1548.48,0.00012191,2]
[352892528,1739392251215,-151.0,0.000122,2]
[352892530,1739392251224,-501.22426659,0.00012221,2]
[352892532,1739392251234,-528.69050142,0.00012221,2]
[352892533,1739392251244,-311.23574677,0.00012221,2]
[352892536,1739392251256,-1000.0,0.00012221,2]
[352892537,1739392251266,-531.26523494,0.00012221,2]
[352892540,1739392251276,-1000.0,0.00012259,2]
[352892542,1739392251286,-151.0,0.000123,2]
[352892544,1739392251297,-500.0,0.00012328,2]
[352892546,1739392251307,-500.0,0.00012328,2]
[352892548,1739392251319,-500.0,0.00012328,2]
[352892550,1739392251329,-500.0,0.00012328,2]
[352892552,1739392251338,-500.0,0.00012328,2]
[352892554,1739392251348,-500.0,0.00012328,2]
[352892556,1739392251357,-500.0,0.00012328,2]
[352892558,1739392251367,-500.0,0.00012328,2]
[352892560,1739392251378,-500.0,0.00012328,2]
[352892562,1739392251388,-500.0,0.00012328,2]
[352892564,1739392251401,-500.0,0.00012328,2]
[352892568,1739392251424,-294.32,0.00012328,2]
[352892571,1739392251441,-500.0,0.00012328,2]
[352892574,1739392251461,-500.0,0.00012328,2]
[352892577,1739392251482,-500.0,0.00012328,2]
[352892580,1739392251502,-238.768055,0.00012328,2]
[352892583,1739392251525,-238.768055,0.00012328,2]
[352892585,1739392251541,-606.65,0.00012328,2]
[352892588,1739392251558,-500.0,0.00012328,2]
[352892591,1739392251576,-157.82,0.00012328,2]
[352892594,1739392251597,-500.0,0.00012328,2]
[352892597,1739392251617,-705.48,0.00012328,2]
[352892600,1739392251632,-500.0,0.00012328,2]
[352892602,1739392251651,-500.0,0.00012328,2]
[352892605,1739392251667,-500.0,0.00012328,2]
[352892608,1739392251683,-322.35587736,0.00012328,2]
[352892610,1739392251699,-3136.41,0.00012328,2]
[352892613,1739392251720,-548.51,0.00012328,2]
[352892615,1739392251736,-583.6,0.00012328,2]
[352892618,1739392251753,-500.0,0.00012328,2]
[352892621,1739392251767,-500.0,0.00012328,2]
[352892623,1739392251782,-1250.2,0.00012328,2]
[352892626,1739392251797,-500.0,0.00012328,2]
[352892629,1739392251812,-500.0,0.00012328,2]
[352892631,1739392251827,-10697.67,0.00012328,2]
[352892634,1739392251843,-500.0,0.00012328,2]
[352892636,1739392251858,-500.0,0.00012328,2]
[352892639,1739392251872,-151.0,0.00012328,2]
[352892642,1739392251887,-500.0,0.00012328,2]
[352892644,1739392251902,-616.97,0.00012328,2]
[352892647,1739392251916,-500.0,0.00012328,2]
[352892649,1739392251931,-151.0,0.00012328,2]
[352892652,1739392251946,-500.0,0.00012328,2]
[352892654,1739392251961,-214.294755,0.00012328,2]
[352892657,1739392251976,-301.79,0.00012328,2]
[352892660,1739392251990,-858.92,0.00012328,2]
[352892662,1739392252005,-8463.2,0.00012328,2]
[352892665,1739392252020,-500.0,0.00012328,2]
[352892667,1739392252035,-151.0,0.00012328,2]
[352892670,1739392252051,-2862.12,0.00012328,2]
[352892673,1739392252066,-151.0,0.00012328,2]
[352892675,1739392252083,-500.0,0.00012328,2]
[352892678,1739392252099,-1487.37,0.00012328,2]
[352892681,1739392252114,-500.0,0.00012328,2]
[352892683,1739392252130,-500.0,0.00012328,2]
[352892695,1739392252219,-3104.52,0.00012328,2]
[352892698,1739392252252,-848.99,0.00012328,2]
[352892700,1739392252262,-582.73,0.00012328,2]
[352892702,1739392252272,-500.0,0.00012328,2]
[352892704,1739392252282,-3478.93,0.00012328,2]
[352892706,1739392252291,-623.57,0.00012328,2]
[352892708,1739392252301,-500.0,0.00012328,2]
[352892709,1739392252310,-1349.55,0.00012328,2]
[352892710,1739392252320,-3327.98,0.00012328,2]
[352892711,1739392252329,-500.0,0.00012328,2]
[352892712,1739392252339,-500.0,0.00012328,2]
[352892713,1739392252349,-163.394877,0.00012328,2]
[352892714,1739392252359,-163.394877,0.00012328,2]
[352892715,1739392252368,-2711.65,0.00012328,2]
[352892716,1739392252378,-500.0,0.00012328,2]
[352892717,1739392252387,-5143.51,0.00012328,2]
[352892718,1739392252396,-500.0,0.00012328,2]
[352892719,1739392252406,-14479.95,0.00012328,2]
[352892720,1739392252416,-1054.47,0.00012328,2]
[352892721,1739392252427,-1177.65,0.00012328,2]
[352892722,1739392252437,-151.0,0.00012328,2]
[352892724,1739392252446,-2107.88,0.00012328,2]
[352892726,1739392252457,-35239.76,0.00012328,2]
[352892728,1739392252467,-633.52,0.00012328,2]
[352892730,1739392252476,-1306.69,0.00012328,2]
[352892732,1739392252486,-4102.13,0.00012328,2]
[352892733,1739392252496,-1754.451824,0.00012328,2]
[352892734,1739392252505,-1754.451824,0.00012328,2]
[352892736,1739392252515,-151.0,0.00012328,2]
[352892737,1739392252529,-1548.48,0.00012328,2]
[352892739,1739392252538,-156.985941,0.00012328,2]
[352892740,1739392252548,-500.0,0.00012333,2]
[352892741,1739392252557,-500.0,0.00012465,2]
[352892742,1739392252568,-500.0,0.00012465,2]
[352892743,1739392252579,-238.4,0.00012465,2]
[352892744,1739392252589,-500.0,0.00012465,2]
[352892745,1739392252600,-500.0,0.00012465,2]
[352892746,1739392252610,-200.97,0.00012465,2]
[352892747,1739392252620,-621.2,0.00012465,2]
[352892748,1739392252630,-500.0,0.00012465,2]
[352892749,1739392252641,-500.0,0.00012465,2]
[352892750,1739392252650,-500.0,0.00012465,2]
[352892751,1739392252660,-500.0,0.00012465,2]
[352892752,1739392252670,-182.960213,0.00012465,2]
[352892753,1739392252679,-336.408121,0.00012465,2]
[352892754,1739392252689,-182.960213,0.00012465,2]
[352892755,1739392252698,-500.0,0.00012465,2]
[352892756,1739392252708,-312.611855,0.00012465,2]
[352892757,1739392252718,-151.0,0.00012465,2]
[352892758,1739392252728,-151.0,0.00012465,2]
[352892759,1739392252737,-606.65,0.00012465,2]
[352892760,1739392252747,-518.12,0.00012465,2]
[352892761,1739392252757,-500.0,0.00012465,2]
[352892762,1739392252767,-705.48,0.00012465,2]
[352892763,1739392252777,-500.0,0.00012465,2]
[352892764,1739392252786,-500.0,0.00012465,2]
[352892765,1739392252796,-500.0,0.00012465,2]
[352892766,1739392252805,-3136.41,0.00012465,2]
[352892767,1739392252814,-583.6,0.00012465,2]
[352892768,1739392252824,-231.662982,0.00012465,2]
[352892769,1739392252833,-231.662982,0.00012465,2]
[352892770,1739392252842,-500.0,0.00012465,2]
[352892771,1739392252852,-1250.2,0.00012465,2]
[352892772,1739392252862,-500.0,0.00012465,2]
[352892773,1739392252871,-10697.67,0.00012465,2]
[352892774,1739392252881,-500.0,0.00012465,2]
[352892775,1739392252891,-500.0,0.00012465,2]
[352892776,1739392252901,-530.02922916,0.00012465,2]
[352892777,1739392252911,-616.97,0.00012465,2]
[352892778,1739392252920,-858.92,0.00012465,2]
[352892779,1739392252931,-8463.2,0.00012465,2]
[352892780,1739392252940,-500.0,0.00012465,2]
[352892782,1739392252950,-2862.12,0.00012465,2]
[352892783,1739392252960,-500.0,0.00012465,2]
[352892784,1739392252970,-1487.37,0.00012465,2]
[352892785,1739392252980,-480.24814645,0.00012465,2]
[352892786,1739392252990,-500.0,0.00012465,2]
[352892787,1739392252999,-3104.52,0.00012465,2]
[352892788,1739392253008,-848.99,0.00012465,2]
[352892789,1739392253017,-582.73,0.00012465,2]
[352892790,1739392253027,-3478.93,0.00012465,2]
[352892791,1739392253036,-623.57,0.00012465,2]
[352892792,1739392253045,-500.0,0.00012465,2]
[352892793,1739392253054,-1349.55,0.00012465,2]
[352892794,1739392253064,-3327.98,0.00012465,2]
[352892795,1739392253074,-500.0,0.00012465,2]
[352892796,1739392253084,-500.0,0.00012465,2]
[352892797,1739392253094,-2711.65,0.00012465,2]
[352892798,1739392253103,-5143.51,0.00012465,2]
[352892799,1739392253113,-500.0,0.00012465,2]
[352892800,1739392253122,-500.0,0.00012465,2]
[352892801,1739392253134,-14479.95,0.00012465,2]
[352892802,1739392253144,-1054.47,0.00012465,2]
[352892803,1739392253153,-1177.65,0.00012465,2]
[352892804,1739392253163,-2107.88,0.00012465,2]
[352892805,1739392253173,-35239.76,0.00012465,2]
[352892806,1739392253182,-633.52,0.00012465,2]
[352892807,1739392253192,-1306.69,0.00012465,2]
[352892808,1739392253202,-4102.13,0.00012465,2]
[352892809,1739392253211,-1548.48,0.00012465,2]
[352892810,1739392253221,-151.0,0.000125,2]
[352892811,1739392253231,-500.0,0.00012602,2]
[352892812,1739392253240,-500.0,0.00012602,2]
[352892813,1739392253251,-500.0,0.00012602,2]
[352892814,1739392253260,-500.0,0.00012602,2]
[352892815,1739392253269,-151.0,0.00012602,2]
[352892816,1739392253278,-476.788715,0.00012602,2]
[352892817,1739392253288,-476.788715,0.00012602,2]
[352892818,1739392253298,-500.0,0.00012602,2]
[352892819,1739392253307,-151.0,0.00012602,2]
[352892820,1739392253317,-151.0,0.00012602,2]
[352892821,1739392253327,-151.0,0.00012602,2]
[352892822,1739392253336,-500.0,0.00012602,2]
[352892823,1739392253345,-439.95,0.00012602,2]
[352892824,1739392253354,-500.0,0.00012602,2]
[352892825,1739392253364,-606.65,0.00012602,2]
[352892826,1739392253376,-500.0,0.00012602,2]
[352892827,1739392253386,-705.48,0.00012602,2]
[352892828,1739392253397,-641.844394,0.00012602,2]
[352892829,1739392253407,-500.0,0.00012602,2]
[352892830,1739392253416,-454.32,0.00012602,2]
[352892831,1739392253426,-641.844394,0.00012602,2]
[352892832,1739392253435,-3136.41,0.00012602,2]
[352892833,1739392253444,-583.6,0.00012602,2]
[352892834,1739392253454,-1250.2,0.00012602,2]
[352892835,1739392253464,-500.0,0.00012602,2]
[352892836,1739392253474,-10697.67,0.00012602,2]
[352892837,1739392253484,-205.8,0.00012602,2]
[352892838,1739392253494,-616.97,0.00012602,2]
[352892839,1739392253503,-858.92,0.00012602,2]
[352892840,1739392253514,-8463.2,0.00012602,2]
[352892841,1739392253528,-500.0,0.00012602,2]
[352892842,1739392253538,-2862.12,0.00012602,2]
[352892843,1739392253615,-500.0,0.00012602,2]
[352892844,1739392253637,-1487.37,0.00012602,2]
[352892845,1739392253647,-500.0,0.00012602,2]
[352892846,1739392253656,-3104.52,0.00012602,2]
[352892847,1739392253666,-848.99,0.00012602,2]
[352892848,1739392253675,-582.73,0.00012602,2]
[352892849,1739392253686,-3478.93,0.00012602,2]
[352892850,1739392253696,-623.57,0.00012602,2]
[352892851,1739392253705,-1349.55,0.00012602,2]
[352892852,1739392253715,-3327.98,0.00012602,2]
[352892853,1739392253726,-500.0,0.00012602,2]
[352892854,1739392253736,-500.0,0.00012602,2]
[352892855,1739392253746,-2711.65,0.00012602,2]
[352892856,1739392253756,-500.0,0.00012602,2]
[352892857,1739392253765,-5143.51,0.00012602,2]
[352892858,1739392253775,-500.0,0.00012602,2]
[352892859,1739392253785,-14479.95,0.00012602,2]
[352892860,1739392253795,-1054.47,0.00012602,2]
[352892861,1739392253805,-1177.65,0.00012602,2]
[352892862,1739392253815,-2107.88,0.00012602,2]
[352892863,1739392253825,-35239.76,0.00012602,2]
[352892864,1739392253835,-633.52,0.00012602,2]
[352892865,1739392253845,-1306.69,0.00012602,2]
[352892866,1739392253855,-4102.13,0.00012602,2]
[352892867,1739392253866,-1548.48,0.00012602,2]
[352892868,1739392253876,-151.0,0.000127,2]
[352892869,1739392253886,-500.0,0.00012739,2]
[352892870,1739392253895,-500.0,0.00012739,2]
[352892871,1739392253907,-500.0,0.00012739,2]
[352892872,1739392253916,-500.0,0.00012739,2]
[352892873,1739392253926,-500.0,0.00012739,2]
[352892874,1739392253936,-500.0,0.00012739,2]
[352892875,1739392253945,-500.0,0.00012739,2]
[352892876,1739392253955,-606.65,0.00012739,2]
[352892877,1739392253965,-500.0,0.00012739,2]
[352892878,1739392253975,-705.48,0.00012739,2]
[352892879,1739392253984,-500.0,0.00012739,2]
[352892880,1739392253994,-3136.41,0.00012739,2]
[352892881,1739392254004,-583.6,0.00012739,2]
[352892882,1739392254014,-1250.2,0.00012739,2]
[352892883,1739392254023,-500.0,0.00012739,2]
[352892884,1739392254033,-10697.67,0.00012739,2]
[352892885,1739392254042,-616.97,0.00012739,2]
[352892886,1739392254052,-858.92,0.00012739,2]
[352892887,1739392254061,-8463.2,0.00012739,2]
[352892888,1739392254072,-2862.12,0.00012739,2]
[352892889,1739392254082,-500.0,0.00012739,2]
[352892890,1739392254093,-1487.37,0.00012739,2]
[352892891,1739392254102,-500.0,0.00012739,2]
[352892892,1739392254112,-151.0,0.00012739,2]
[352892893,1739392254121,-151.0,0.00012739,2]
[352892894,1739392254132,-3104.52,0.00012739,2]
[352892895,1739392254142,-848.99,0.00012739,2]
[352892896,1739392254151,-582.73,0.00012739,2]
[352892897,1739392254161,-3478.93,0.00012739,2]
[352892898,1739392254171,-623.57,0.00012739,2]
[352892899,1739392254180,-1349.55,0.00012739,2]
[352892900,1739392254189,-151.0,0.00012739,2]
[352892901,1739392254199,-3327.98,0.00012739,2]
[352892902,1739392254210,-151.0,0.00012739,2]
[352892903,1739392254220,-500.0,0.00012739,2]
[352892904,1739392254230,-500.0,0.00012739,2]
[352892905,1739392254240,-163.394877,0.00012739,2]
[352892906,1739392254251,-163.394877,0.00012739,2]
[352892907,1739392254261,-2711.65,0.00012739,2]
[352892908,1739392254271,-500.0,0.00012739,2]
[352892909,1739392254280,-5143.51,0.00012739,2]
[352892910,1739392254290,-152.13953653,0.00012739,2]
[352892911,1739392254300,-749.62116246,0.00012739,2]
[352892912,1739392254885,-500.0,0.00010958,2]
[352892913,1739392254894,-500.0,0.00010958,2]
[352892914,1739392254903,-500.0,0.00011095,2]
[352892915,1739392254913,-500.0,0.00011095,2]
[352892916,1739392254923,-500.0,0.00011232,2]
[352892917,1739392254932,-389.2,0.00011232,2]
[352892918,1739392254941,-500.0,0.00011232,2]
[352892919,1739392254950,-500.0,0.00011369,2]
[352892920,1739392254959,-500.0,0.00011369,2]
[352892921,1739392254968,-472.11319007,0.00011506,2]
[352892922,1739392254981,-27.88680993,0.00011506,2]
[352892923,1739392254991,-500.0,0.00011506,2]
[352892924,1739392255000,-245.26451731,0.00011643,2]
[352892925,1739392255009,-156.985941,0.00011643,2]
[352892926,1739392255019,-500.0,0.0001178,2]
[352892927,1739392255028,-500.0,0.00011917,2]
[352892928,1739392255037,-156.985941,0.00011917,2]
[352892929,1739392255047,-1859.03,0.00012054,2]
[352892930,1739392255057,-500.0,0.00012054,2]
[352892931,1739392255066,-435.25968075,0.00012191,2]
[352892932,1739392255127,-1345.25,0.00012191,2]
[352892933,1739392255139,-78.52031925,0.00012191,2]
[352892934,1739392255148,-500.0,0.00012191,2]
[352892935,1739392255158,-1859.03,0.00012328,2]
[352892936,1739392255167,-500.0,0.00012328,2]
[352892937,1739392255176,-156.985941,0.00012328,2]
[352892938,1739392255185,-2171.26069133,0.00012465,5]
[352892939,1739392255195,-1859.03,0.00012465,2]
[352892940,1739392255204,-500.0,0.00012465,2]
[352892941,1739392255213,-1859.03,0.00012602,2]
[352892942,1739392255223,-500.0,0.00012602,2]
[352892943,1739392255232,-13730.32883754,0.00012739,2]
[352892944,1739392255242,-1054.47,0.00012739,2]
[352892945,1739392255251,-1177.65,0.00012739,2]
[352892946,1739392255261,-151.0,0.00012739,2]
[352892947,1739392255270,-2107.88,0.00012739,2]
[352892948,1739392255279,-35239.76,0.00012739,2]
[352892949,1739392255289,-633.52,0.00012739,2]
[352892950,1739392255298,-1306.69,0.00012739,2]
[352892951,1739392255307,-4102.13,0.00012739,2]
[352892952,1739392255317,-1754.451824,0.00012739,2]
[352892953,1739392255326,-1754.451824,0.00012739,2]
[352892954,1739392255335,-151.0,0.00012739,2]
[352892955,1739392255345,-1548.48,0.00012739,2]
[352892956,1739392255355,-156.985941,0.00012739,2]
[352892957,1739392255364,-1859.03,0.00012739,2]
[352892958,1739392255373,-500.0,0.00012739,2]
[352892959,1739392255382,-156.985941,0.00012739,2]
[352892960,1739392255391,-16331.49621402,0.00012876,5]
[352892961,1739392255399,-500.0,0.00012876,2]
[352892962,1739392255409,-500.0,0.00012876,2]
[352892963,1739392255418,-500.0,0.00012876,2]
[352892964,1739392255427,-500.0,0.00012876,2]
[352892965,1739392255437,-500.0,0.00012876,2]
[352892966,1739392255446,-500.0,0.00012876,2]
[352892967,1739392255456,-500.0,0.00012876,2]
[352892968,1739392255466,-606.65,0.00012876,2]
[352892969,1739392255475,-500.0,0.00012876,2]
[352892970,1739392255485,-705.48,0.00012876,2]
[352892971,1739392255495,-500.0,0.00012876,2]
[352892972,1739392255505,-3136.41,0.00012876,2]
[352892973,1739392255517,-583.6,0.00012876,2]
[352892974,1739392255527,-151.0,0.00012876,2]
[352892975,1739392255536,-462.32117,0.00012876,2]
[352892976,1739392255547,-1250.2,0.00012876,2]
[352892977,1739392255557,-462.32117,0.00012876,2]
[352892978,1739392255567,-208.327002,0.00012876,2]
[352892979,1739392255576,-518.85,0.00012876,2]
[352892980,1739392255585,-10697.67,0.00012876,2]
[352892981,1739392255595,-208.327002,0.00012876,2]
[352892982,1739392255605,-287.510292,0.00012876,2]
[352892983,1739392255614,-287.510292,0.00012876,2]